[Event "*** SCC Grand Prix: Titled Tuesday Blitz"]
[Site "Chess.com"]
[Date "2020.08.25"]
[Round "6"]
[White "PauloCesarCosta_sad"]
[Black "Annagozel"]
[Result "1-0"]
[WhiteElo "2270"]
[BlackElo "1853"]
[TimeControl "180+1"]
[EndTime "11:08:12 PDT"]
[Termination "PauloCesarCosta_sad won by resignation"]

1. Nf3 {[%clk 0:03:00.9]} 1... d5 {[%clk 0:02:58.6]} 2. d4 {[%clk 0:03:00.9]}
2... Nf6 {[%clk 0:02:55.9]} 3. c4 {[%clk 0:03:01.3]} 3... e6 {[%clk 0:02:55.3]}
4. Nc3 {[%clk 0:03:01.4]} 4... Be7 {[%clk 0:02:54.2]} 5. Bg5 {[%clk 0:03:01.8]}
5... h6 {[%clk 0:02:52.5]} 6. Bh4 {[%clk 0:03:01.4]} 6... b6 {[%clk 0:02:50.7]}
7. e3 {[%clk 0:03:01.1]} 7... Bb7 {[%clk 0:02:49.5]} 8. cxd5 {[%clk 0:02:52.1]}
8... exd5 {[%clk 0:02:48.6]} 9. Bd3 {[%clk 0:02:51.2]} 9... O-O {[%clk
0:02:46.3]} 10. O-O {[%clk 0:02:50.9]} 10... Ne4 {[%clk 0:02:46.1]} 11. Bxe7
{[%clk 0:02:24.5]} 11... Qxe7 {[%clk 0:02:45]} 12. Qb3 {[%clk 0:02:25]} 12...
Nxc3 {[%clk 0:02:38.2]} 13. Qxc3 {[%clk 0:02:25.2]} 13... c5 {[%clk 0:02:30.7]}
14. dxc5 {[%clk 0:02:17.1]} 14... bxc5 {[%clk 0:02:30.6]} 15. Rac1 {[%clk
0:02:16.7]} 15... Nd7 {[%clk 0:02:28.7]} 16. Bf5 {[%clk 0:02:08.9]} 16... c4
{[%clk 0:02:12.2]} 17. Rfd1 {[%clk 0:02:08.6]} 17... Nb6 {[%clk 0:02:03.7]} 18.
Rd4 {[%clk 0:02:01.7]} 18... Qf6 {[%clk 0:01:51.3]} 19. Qc2 {[%clk 0:01:56]}
19... g6 {[%clk 0:01:44.4]} 20. Bg4 {[%clk 0:01:56.2]} 20... h5 {[%clk
0:01:40.5]} 21. Bh3 {[%clk 0:01:51.1]} 21... Rfe8 {[%clk 0:01:37.2]} 22. Rcd1
{[%clk 0:01:44.2]} 22... Re4 {[%clk 0:01:18.1]} 23. Qc3 {[%clk 0:01:44.1]} 23...
Rae8 {[%clk 0:01:04.1]} 24. Rxe4 {[%clk 0:01:37.6]} 24... Qd8 {[%clk 0:00:52.2]}
25. Rxe8+ {[%clk 0:01:36.8]} 25... Qxe8 {[%clk 0:00:51.9]} 26. Qe5 {[%clk
0:01:33.5]} 26... Qxe5 {[%clk 0:00:49.3]} 27. Nxe5 {[%clk 0:01:33.2]} 27... Na4
{[%clk 0:00:48.8]} 28. b3 {[%clk 0:01:29.6]} 28... Nc3 {[%clk 0:00:48.2]} 29.
Ra1 {[%clk 0:01:22.4]} 29... Ba6 {[%clk 0:00:39.7]} 30. bxc4 {[%clk 0:01:21.9]}
30... dxc4 {[%clk 0:00:38.7]} 31. Bd7 {[%clk 0:01:14.5]} 31... Kg7 {[%clk
0:00:37.8]} 32. h4 {[%clk 0:01:06]} 32... f6 {[%clk 0:00:36.9]} 33. Nf3 {[%clk
0:01:05.7]} 33... Kf7 {[%clk 0:00:35.2]} 34. Nd4 {[%clk 0:01:05.3]} 34... Ke7
{[%clk 0:00:33.4]} 35. Be6 {[%clk 0:01:02.8]} 35... Ne4 {[%clk 0:00:28.3]} 36.
Bg8 {[%clk 0:00:57.3]} 36... Kf8 {[%clk 0:00:25.6]} 37. Bd5 {[%clk 0:00:55.1]}
37... Nd2 {[%clk 0:00:23.8]} 38. Nf3 {[%clk 0:00:50]} 38... Nxf3+ {[%clk
0:00:21.2]} 39. gxf3 {[%clk 0:00:49.3]} 39... Ke7 {[%clk 0:00:20.4]} 40. Rc1
{[%clk 0:00:49.3]} 40... Kd6 {[%clk 0:00:19.1]} 41. Bxc4 {[%clk 0:00:49.5]}
41... Bb7 {[%clk 0:00:19.4]} 42. e4 {[%clk 0:00:48.6]} 42... Ke5 {[%clk
0:00:19.7]} 43. Bd5 {[%clk 0:00:48.5]} 43... Kf4 {[%clk 0:00:19.3]} 44. Bxb7
{[%clk 0:00:46.7]} 1-0

[Event "*** SCC Grand Prix: Titled Tuesday Blitz"]
[Site "Chess.com"]
[Date "2020.08.25"]
[Round "6"]
[White "arminmusovic"]
[Black "Aradej"]
[Result "1-0"]
[WhiteElo "2586"]
[BlackElo "2427"]
[TimeControl "180+1"]
[EndTime "11:08:13 PDT"]
[Termination "arminmusovic won by resignation"]

1. a3 {[%clk 0:03:00.9]} 1... e5 {[%clk 0:02:57.1]} 2. Nc3 {[%clk 0:03:01.8]}
2... d5 {[%clk 0:02:56.9]} 3. d4 {[%clk 0:03:02]} 3... e4 {[%clk 0:02:47.1]} 4.
Bf4 {[%clk 0:03:00.4]} 4... c6 {[%clk 0:02:46.8]} 5. e3 {[%clk 0:02:57.8]} 5...
Ne7 {[%clk 0:02:46.1]} 6. h4 {[%clk 0:02:23.4]} 6... h5 {[%clk 0:02:42.3]} 7.
Be2 {[%clk 0:02:03.6]} 7... g6 {[%clk 0:02:39.5]} 8. Be5 {[%clk 0:02:02.7]} 8...
Rh7 {[%clk 0:02:34.5]} 9. f4 {[%clk 0:01:50.7]} 9... Nf5 {[%clk 0:02:30.1]} 10.
Bxb8 {[%clk 0:01:27]} 10... Rxb8 {[%clk 0:02:26.3]} 11. Qd2 {[%clk 0:01:25.7]}
11... Be7 {[%clk 0:02:19.4]} 12. O-O-O {[%clk 0:01:15.1]} 12... Bxh4 {[%clk
0:02:19]} 13. Nh3 {[%clk 0:01:10.1]} 13... Be6 {[%clk 0:02:14.1]} 14. Rdg1
{[%clk 0:01:06.1]} 14... Kd7 {[%clk 0:02:05.9]} 15. Nd1 {[%clk 0:00:58.8]} 15...
b5 {[%clk 0:02:01.6]} 16. g4 {[%clk 0:00:57.7]} 16... hxg4 {[%clk 0:02:00.3]}
17. Bxg4 {[%clk 0:00:57.9]} 17... Rh8 {[%clk 0:01:58.6]} 18. Kb1 {[%clk
0:00:39.1]} 18... Kc7 {[%clk 0:01:58.5]} 19. Bxf5 {[%clk 0:00:31.3]} 19... Bxf5
{[%clk 0:01:55.3]} 20. Ng5 {[%clk 0:00:31.1]} 20... Bxg5 {[%clk 0:01:54.8]} 21.
Rxh8 {[%clk 0:00:27.9]} 21... Qxh8 {[%clk 0:01:54.7]} 22. fxg5 {[%clk
0:00:27.3]} 22... Kb7 {[%clk 0:01:50.7]} 23. a4 {[%clk 0:00:26.8]} 23... a6
{[%clk 0:01:50.4]} 24. a5 {[%clk 0:00:27.2]} 24... Qd8 {[%clk 0:01:44.9]} 25.
Rh1 {[%clk 0:00:27.6]} 25... Qxg5 {[%clk 0:01:43.9]} 26. Qb4 {[%clk 0:00:27.7]}
26... Qd8 {[%clk 0:01:40.7]} 27. Rh7 {[%clk 0:00:23.4]} 27... Qc7 {[%clk
0:01:40.2]} 28. Nc3 {[%clk 0:00:19.7]} 28... g5 {[%clk 0:01:36.7]} 29. Rg7
{[%clk 0:00:20.1]} 29... Bg6 {[%clk 0:01:36.9]} 30. Ne2 {[%clk 0:00:16.6]} 30...
Rd8 {[%clk 0:01:31.6]} 31. Qc3 {[%clk 0:00:16.4]} 31... Qd6 {[%clk 0:01:29.7]}
32. b4 {[%clk 0:00:16.2]} 32... Rh8 {[%clk 0:01:15.1]} 33. Nc1 {[%clk
0:00:15.2]} 33... g4 {[%clk 0:01:01.2]} 34. Nb3 {[%clk 0:00:13.5]} 34... g3
{[%clk 0:00:59.3]} 35. Nc5+ {[%clk 0:00:11.3]} 35... Ka7 {[%clk 0:00:59.3]} 36.
Qe1 {[%clk 0:00:05.8]} 36... g2 {[%clk 0:00:56.4]} 37. Qf2 {[%clk 0:00:05.8]}
37... Rh1+ {[%clk 0:00:56.3]} 38. Kb2 {[%clk 0:00:06.2]} 38... g1=Q {[%clk
0:00:56.2]} 39. Rxf7+ {[%clk 0:00:06.6]} 39... Kb8 {[%clk 0:00:44.3]} 40. Rf8+
{[%clk 0:00:07.1]} 40... Kc7 {[%clk 0:00:43.8]} 41. Rf7+ {[%clk 0:00:07.4]}
41... Kd8 {[%clk 0:00:43.9]} 42. Nb7+ {[%clk 0:00:07.3]} 1-0

[Event "*** SCC Grand Prix: Titled Tuesday Blitz"]
[Site "Chess.com"]
[Date "2020.08.25"]
[Round "6"]
[White "Artem_Sadovsky"]
[Black "abykhovsky"]
[Result "0-1"]
[WhiteElo "2566"]
[BlackElo "2778"]
[TimeControl "180+1"]
[EndTime "11:08:14 PDT"]
[Termination "abykhovsky won by resignation"]

1. Nf3 {[%clk 0:02:59.4]} 1... c5 {[%clk 0:02:11.9]} 2. g3 {[%clk 0:02:56.9]}
2... Nc6 {[%clk 0:02:11.8]} 3. Bg2 {[%clk 0:02:57.4]} 3... g6 {[%clk 0:02:10.7]}
4. O-O {[%clk 0:02:57.6]} 4... Bg7 {[%clk 0:02:11.3]} 5. e3 {[%clk 0:02:50.3]}
5... d5 {[%clk 0:02:08.5]} 6. d4 {[%clk 0:02:49.7]} 6... cxd4 {[%clk 0:02:09.4]}
7. exd4 {[%clk 0:02:49.9]} 7... Nf6 {[%clk 0:02:10.1]} 8. c3 {[%clk 0:02:49.2]}
8... O-O {[%clk 0:02:10.3]} 9. Re1 {[%clk 0:02:49.4]} 9... Bf5 {[%clk
0:02:09.5]} 10. Bf4 {[%clk 0:02:48.2]} 10... b5 {[%clk 0:02:09.5]} 11. a3 {[%clk
0:02:42.6]} 11... e6 {[%clk 0:02:08.5]} 12. Ne5 {[%clk 0:02:38.6]} 12... Nxe5
{[%clk 0:02:04]} 13. Bxe5 {[%clk 0:02:39.5]} 13... Bxb1 {[%clk 0:02:00.1]} 14.
Qxb1 {[%clk 0:02:33]} 14... Ne8 {[%clk 0:01:59.2]} 15. Bxg7 {[%clk 0:02:30.5]}
15... Kxg7 {[%clk 0:01:59.7]} 16. Qd3 {[%clk 0:02:28.3]} 16... Rb8 {[%clk
0:01:57.5]} 17. h4 {[%clk 0:02:26.3]} 17... h5 {[%clk 0:01:55.6]} 18. Re5 {[%clk
0:02:23.7]} 18... Nd6 {[%clk 0:01:55.8]} 19. Re2 {[%clk 0:02:19.9]} 19... a5
{[%clk 0:01:55.3]} 20. Rae1 {[%clk 0:02:09.2]} 20... b4 {[%clk 0:01:53.9]} 21.
axb4 {[%clk 0:02:10.1]} 21... axb4 {[%clk 0:01:54.5]} 22. Bh3 {[%clk 0:01:52.1]}
22... bxc3 {[%clk 0:01:43.5]} 23. bxc3 {[%clk 0:01:53]} 23... Rc8 {[%clk
0:01:43.5]} 24. Re5 {[%clk 0:01:36]} 24... Ne4 {[%clk 0:01:38.1]} 25. c4 {[%clk
0:01:29.5]} 25... Nf6 {[%clk 0:01:21.5]} 26. c5 {[%clk 0:01:26]} 26... Ra8
{[%clk 0:01:21.6]} 27. R5e2 {[%clk 0:01:22.8]} 27... Ra4 {[%clk 0:01:21.4]} 28.
Rd1 {[%clk 0:01:10.4]} 28... Qa5 {[%clk 0:01:19.7]} 29. Rc2 {[%clk 0:01:04.9]}
29... Rb8 {[%clk 0:01:17]} 30. c6 {[%clk 0:01:03.4]} 30... Qc7 {[%clk
0:01:16.7]} 31. Re1 {[%clk 0:00:57.5]} 31... Rbb4 {[%clk 0:01:16.3]} 32. Bxe6
{[%clk 0:00:49.4]} 32... fxe6 {[%clk 0:00:55]} 33. Rxe6 {[%clk 0:00:50.3]} 33...
Rb1+ {[%clk 0:00:54.7]} 34. Kg2 {[%clk 0:00:48.5]} 34... Raa1 {[%clk 0:00:54.7]}
35. Rce2 {[%clk 0:00:31.2]} 35... Rg1+ {[%clk 0:00:53.2]} 36. Kf3 {[%clk
0:00:31.1]} 36... Ne4 {[%clk 0:00:50.3]} 37. Rxg6+ {[%clk 0:00:10.8]} 37... Kxg6
{[%clk 0:00:46.9]} 38. Rxe4 {[%clk 0:00:11.7]} 38... dxe4+ {[%clk 0:00:46.7]}
39. Qxe4+ {[%clk 0:00:12.6]} 39... Kf6 {[%clk 0:00:46.8]} 40. Qe3 {[%clk
0:00:03.4]} 40... Qxc6+ {[%clk 0:00:43.3]} 41. Kf4 {[%clk 0:00:03.8]} 41... Qd6+
{[%clk 0:00:38.4]} 0-1

[Event "*** SCC Grand Prix: Titled Tuesday Blitz"]
[Site "Chess.com"]
[Date "2020.08.25"]
[Round "6"]
[White "topotun"]
[Black "AlexSuv"]
[Result "1-0"]
[WhiteElo "2708"]
[BlackElo "2482"]
[TimeControl "180+1"]
[EndTime "11:08:15 PDT"]
[Termination "topotun won by resignation"]

1. e4 {[%clk 0:03:00.9]} 1... c5 {[%clk 0:02:33]} 2. Nf3 {[%clk 0:03:00.5]} 2...
e6 {[%clk 0:02:33.2]} 3. d4 {[%clk 0:03:00.7]} 3... cxd4 {[%clk 0:02:34.1]} 4.
Nxd4 {[%clk 0:03:01.6]} 4... Nc6 {[%clk 0:02:34.4]} 5. Nc3 {[%clk 0:03:01.7]}
5... Qc7 {[%clk 0:02:34.9]} 6. Be3 {[%clk 0:03:01.4]} 6... a6 {[%clk 0:02:35.3]}
7. Be2 {[%clk 0:03:01]} 7... Nf6 {[%clk 0:02:35.1]} 8. a3 {[%clk 0:03:01.1]}
8... Be7 {[%clk 0:02:33.2]} 9. f4 {[%clk 0:03:01.2]} 9... d6 {[%clk 0:02:32.7]}
10. g4 {[%clk 0:03:01.2]} 10... O-O {[%clk 0:02:29.2]} 11. g5 {[%clk 0:03:01.4]}
11... Nd7 {[%clk 0:02:29.5]} 12. h4 {[%clk 0:03:01.7]} 12... b5 {[%clk
0:02:22.9]} 13. Nxc6 {[%clk 0:03:01.7]} 13... Qxc6 {[%clk 0:02:22.2]} 14. Qd4
{[%clk 0:03:02.4]} 14... Bb7 {[%clk 0:02:16.1]} 15. O-O-O {[%clk 0:03:01.9]}
15... e5 {[%clk 0:02:13]} 16. Qd2 {[%clk 0:03:01.5]} 16... exf4 {[%clk
0:02:07.7]} 17. Bxf4 {[%clk 0:03:02.4]} 17... Ne5 {[%clk 0:02:07.6]} 18. Nd5
{[%clk 0:03:01.5]} 18... Rfe8 {[%clk 0:01:56.2]} 19. Kb1 {[%clk 0:02:58.6]}
19... Bf8 {[%clk 0:01:52.1]} 20. h5 {[%clk 0:02:57.3]} 20... Nc4 {[%clk
0:01:52.2]} 21. Bxc4 {[%clk 0:02:53.3]} 21... bxc4 {[%clk 0:01:45.6]} 22. h6
{[%clk 0:02:06.1]} 22... c3 {[%clk 0:01:07.4]} 23. Nxc3 {[%clk 0:01:45.1]} 23...
Rac8 {[%clk 0:00:57.1]} 24. Bxd6 {[%clk 0:01:38.7]} 24... Rcd8 {[%clk
0:00:52.9]} 25. hxg7 {[%clk 0:00:46.4]} 25... Bxd6 {[%clk 0:00:50.1]} 26. g6
{[%clk 0:00:47]} 26... fxg6 {[%clk 0:00:45.4]} 27. Qh6 {[%clk 0:00:46]} 27...
Kf7 {[%clk 0:00:40]} 28. Qxh7 {[%clk 0:00:38.4]} 28... Rg8 {[%clk 0:00:39.7]}
29. Rhf1+ {[%clk 0:00:37.1]} 29... Ke7 {[%clk 0:00:39.1]} 30. Qxg6 {[%clk
0:00:31.1]} 30... Qc4 {[%clk 0:00:20]} 31. Qf6+ {[%clk 0:00:27.1]} 31... Ke8
{[%clk 0:00:17.8]} 32. Qg6+ {[%clk 0:00:19.4]} 32... Ke7 {[%clk 0:00:17]} 33.
Qg5+ {[%clk 0:00:16.1]} 33... Ke8 {[%clk 0:00:16.4]} 34. e5 {[%clk 0:00:14.9]}
34... Be7 {[%clk 0:00:16.9]} 35. Qg6+ {[%clk 0:00:14.9]} 1-0

[Event "*** SCC Grand Prix: Titled Tuesday Blitz"]
[Site "Chess.com"]
[Date "2020.08.25"]
[Round "6"]
[White "Meri-Arabidze"]
[Black "ljuks68"]
[Result "1-0"]
[WhiteElo "2605"]
[BlackElo "2442"]
[TimeControl "180+1"]
[EndTime "11:08:18 PDT"]
[Termination "Meri-Arabidze won on time"]

1. d4 {[%clk 0:03:00.9]} 1... d5 {[%clk 0:02:59.6]} 2. c4 {[%clk 0:03:01.1]}
2... c6 {[%clk 0:02:59.2]} 3. Nf3 {[%clk 0:03:01.8]} 3... Nf6 {[%clk 0:02:59.4]}
4. cxd5 {[%clk 0:03:02.1]} 4... cxd5 {[%clk 0:02:59.3]} 5. Nc3 {[%clk 0:03:03]}
5... Nc6 {[%clk 0:02:59.7]} 6. Bf4 {[%clk 0:03:03.6]} 6... Bf5 {[%clk
0:03:00.2]} 7. e3 {[%clk 0:03:03.3]} 7... e6 {[%clk 0:03:00.7]} 8. Qb3 {[%clk
0:03:02.6]} 8... Bb4 {[%clk 0:02:57.9]} 9. Bb5 {[%clk 0:03:00.3]} 9... O-O
{[%clk 0:02:57.7]} 10. O-O {[%clk 0:02:56.5]} 10... Qe7 {[%clk 0:02:57]} 11. Bg5
{[%clk 0:02:39.2]} 11... Bd6 {[%clk 0:02:36.5]} 12. Na4 {[%clk 0:02:13.8]} 12...
Rac8 {[%clk 0:02:06]} 13. Rfc1 {[%clk 0:02:09]} 13... Na5 {[%clk 0:01:51]} 14.
Qd1 {[%clk 0:02:07.2]} 14... a6 {[%clk 0:01:50]} 15. Bd3 {[%clk 0:02:03.6]}
15... b5 {[%clk 0:01:38.1]} 16. Nc5 {[%clk 0:01:53.5]} 16... Bxc5 {[%clk
0:01:28.1]} 17. Bxf5 {[%clk 0:01:42.2]} 17... Ba3 {[%clk 0:00:46.6]} 18. Bxh7+
{[%clk 0:01:32.8]} 18... Kxh7 {[%clk 0:00:45.5]} 19. bxa3 {[%clk 0:01:33]} 19...
Qxa3 {[%clk 0:00:37.2]} 20. Bxf6 {[%clk 0:01:23.8]} 20... gxf6 {[%clk
0:00:36.7]} 21. Rc2 {[%clk 0:01:19.5]} 21... Nc4 {[%clk 0:00:23.5]} 22. Rac1
{[%clk 0:01:16.8]} 22... Qe7 {[%clk 0:00:21.2]} 23. Ne1 {[%clk 0:01:13.5]} 23...
Rh8 {[%clk 0:00:19.5]} 24. Nd3 {[%clk 0:01:09.9]} 24... Rcg8 {[%clk 0:00:16.4]}
25. Nf4 {[%clk 0:01:06.5]} 25... Rg5 {[%clk 0:00:13.2]} 26. g3 {[%clk
0:01:04.3]} 26... Kg7 {[%clk 0:00:12.8]} 27. Qf3 {[%clk 0:00:55.2]} 27... Kg8
{[%clk 0:00:10.1]} 28. e4 {[%clk 0:00:54.8]} 28... dxe4 {[%clk 0:00:08]} 29.
Qxe4 {[%clk 0:00:55]} 29... e5 {[%clk 0:00:04.5]} 30. Nd5 {[%clk 0:00:50.7]}
30... Qe6 {[%clk 0:00:03]} 31. dxe5 {[%clk 0:00:23.5]} 31... Rxe5 {[%clk
0:00:02.4]} 32. Qg4+ {[%clk 0:00:23.7]} 32... Qxg4 {[%clk 0:00:01.9]} 33. Nxf6+
{[%clk 0:00:24]} 33... Kg7 {[%clk 0:00:02]} 34. Nxg4 {[%clk 0:00:24.9]} 34...
Re4 {[%clk 0:00:01.2]} 35. f3 {[%clk 0:00:24.5]} 1-0

[Event "*** SCC Grand Prix: Titled Tuesday Blitz"]
[Site "Chess.com"]
[Date "2020.08.25"]
[Round "6"]
[White "english_player_89"]
[Black "Xeniya2005"]
[Result "0-1"]
[WhiteElo "2485"]
[BlackElo "2367"]
[TimeControl "180+1"]
[EndTime "11:08:19 PDT"]
[Termination "Xeniya2005 won by resignation"]

1. e4 {[%clk 0:03:00.9]} 1... e6 {[%clk 0:02:59.9]} 2. d4 {[%clk 0:03:00.6]}
2... d5 {[%clk 0:02:59.9]} 3. exd5 {[%clk 0:03:01.5]} 3... exd5 {[%clk
0:02:59.8]} 4. Nf3 {[%clk 0:03:00.6]} 4... Nf6 {[%clk 0:02:59.8]} 5. Bd3 {[%clk
0:02:57.7]} 5... Be7 {[%clk 0:02:59.5]} 6. O-O {[%clk 0:02:55.6]} 6... O-O
{[%clk 0:02:59.5]} 7. h3 {[%clk 0:02:54.3]} 7... Nc6 {[%clk 0:02:59.6]} 8. c3
{[%clk 0:02:54.2]} 8... Be6 {[%clk 0:02:59]} 9. Nbd2 {[%clk 0:02:53.9]} 9... h6
{[%clk 0:02:59]} 10. Re1 {[%clk 0:02:54.2]} 10... Qd7 {[%clk 0:02:58.4]} 11. Nf1
{[%clk 0:02:54.4]} 11... Rfe8 {[%clk 0:02:57.4]} 12. Ng3 {[%clk 0:02:54.4]}
12... Rad8 {[%clk 0:02:57.2]} 13. Bd2 {[%clk 0:02:46]} 13... Bd6 {[%clk
0:02:52.6]} 14. Qc1 {[%clk 0:02:38.7]} 14... Bxg3 {[%clk 0:02:46.4]} 15. fxg3
{[%clk 0:02:39.6]} 15... Bf5 {[%clk 0:02:45.9]} 16. Bf1 {[%clk 0:02:37.9]} 16...
Ne4 {[%clk 0:02:42.8]} 17. g4 {[%clk 0:02:36.2]} 17... Bh7 {[%clk 0:02:40.7]}
18. Bf4 {[%clk 0:02:35]} 18... f6 {[%clk 0:02:35.8]} 19. Bd3 {[%clk 0:02:28.9]}
19... Ne7 {[%clk 0:02:33.5]} 20. Qc2 {[%clk 0:02:27.9]} 20... b6 {[%clk
0:02:22.5]} 21. Nd2 {[%clk 0:02:26]} 21... Ng6 {[%clk 0:02:17.7]} 22. Bh2 {[%clk
0:02:20.7]} 22... Nxd2 {[%clk 0:02:13.6]} 23. Qxd2 {[%clk 0:02:12.2]} 23... Nf8
{[%clk 0:02:04.7]} 24. Bf1 {[%clk 0:02:09.5]} 24... Be4 {[%clk 0:01:59.2]} 25.
Re3 {[%clk 0:02:02.9]} 25... c5 {[%clk 0:01:55.8]} 26. Rae1 {[%clk 0:02:01]}
26... Ne6 {[%clk 0:01:54.7]} 27. dxc5 {[%clk 0:01:55.8]} 27... bxc5 {[%clk
0:01:52.4]} 28. b3 {[%clk 0:01:42.7]} 28... Ng5 {[%clk 0:01:49.3]} 29. a4 {[%clk
0:01:33.6]} 29... Qb7 {[%clk 0:01:36.4]} 30. Bb5 {[%clk 0:01:32.7]} 30... Re7
{[%clk 0:01:34.5]} 31. h4 {[%clk 0:01:25.8]} 31... Nf7 {[%clk 0:01:33.2]} 32.
Qf2 {[%clk 0:01:17]} 32... a6 {[%clk 0:01:26.2]} 33. Bd3 {[%clk 0:01:11.8]}
33... Rde8 {[%clk 0:01:23.2]} 34. Bxe4 {[%clk 0:01:03.7]} 34... dxe4 {[%clk
0:01:20.8]} 35. c4 {[%clk 0:00:58.7]} 35... Qc6 {[%clk 0:01:15.7]} 36. Qf5
{[%clk 0:00:57.7]} 36... a5 {[%clk 0:01:11.3]} 37. Kh1 {[%clk 0:00:56.3]} 37...
Re6 {[%clk 0:01:09.3]} 38. Bf4 {[%clk 0:00:54.9]} 38... R8e7 {[%clk 0:01:03.5]}
39. Rd1 {[%clk 0:00:49.3]} 39... Re8 {[%clk 0:00:56.6]} 40. Rd5 {[%clk
0:00:48.2]} 40... Ne5 {[%clk 0:00:49.8]} 41. Rxe4 {[%clk 0:00:43.5]} 41... g6
{[%clk 0:00:47.2]} 42. Rxc5 {[%clk 0:00:19.5]} 42... gxf5 {[%clk 0:00:37.6]} 43.
Rxc6 {[%clk 0:00:19.4]} 43... Nxc6 {[%clk 0:00:37.7]} 44. Rxe6 {[%clk
0:00:15.7]} 44... Rxe6 {[%clk 0:00:38.6]} 45. gxf5 {[%clk 0:00:16.2]} 45... Re4
{[%clk 0:00:38.6]} 46. Bxh6 {[%clk 0:00:15.8]} 46... Rxh4+ {[%clk 0:00:37.5]}
0-1

[Event "*** SCC Grand Prix: Titled Tuesday Blitz"]
[Site "Chess.com"]
[Date "2020.08.25"]
[Round "6"]
[White "Ariadna_Atreides"]
[Black "Roza_Idrisova"]
[Result "1/2-1/2"]
[WhiteElo "2049"]
[BlackElo "2193"]
[TimeControl "180+1"]
[EndTime "11:08:19 PDT"]
[Termination "Game drawn by repetition"]

1. d4 {[%clk 0:03:00.9]} 1... d5 {[%clk 0:02:57.2]} 2. Nf3 {[%clk 0:03:00.4]}
2... c6 {[%clk 0:02:57.4]} 3. c4 {[%clk 0:02:59.6]} 3... Nf6 {[%clk 0:02:57.3]}
4. Nbd2 {[%clk 0:02:58.9]} 4... Bf5 {[%clk 0:02:56.4]} 5. Nh4 {[%clk 0:02:58.1]}
5... Be6 {[%clk 0:02:55.1]} 6. e3 {[%clk 0:02:52.6]} 6... g6 {[%clk 0:02:54]} 7.
Be2 {[%clk 0:02:52.2]} 7... Bg7 {[%clk 0:02:54.1]} 8. O-O {[%clk 0:02:50.9]}
8... O-O {[%clk 0:02:53.5]} 9. Nhf3 {[%clk 0:02:50.2]} 9... a5 {[%clk
0:02:52.9]} 10. b3 {[%clk 0:02:47.7]} 10... Na6 {[%clk 0:02:52.4]} 11. Bb2
{[%clk 0:02:46.9]} 11... Re8 {[%clk 0:02:51.5]} 12. a3 {[%clk 0:02:43.8]} 12...
h6 {[%clk 0:02:48.3]} 13. Qc2 {[%clk 0:02:27.2]} 13... Rc8 {[%clk 0:02:45.5]}
14. e4 {[%clk 0:02:13]} 14... dxe4 {[%clk 0:02:43.4]} 15. Nxe4 {[%clk
0:02:12.9]} 15... Bf5 {[%clk 0:02:42.6]} 16. Bd3 {[%clk 0:02:12.5]} 16... Nxe4
{[%clk 0:02:36.7]} 17. Bxe4 {[%clk 0:02:09]} 17... Bxe4 {[%clk 0:02:36.3]} 18.
Qxe4 {[%clk 0:02:08.3]} 18... Qb6 {[%clk 0:02:32.5]} 19. Qe3 {[%clk 0:01:47.9]}
19... c5 {[%clk 0:02:25]} 20. Rab1 {[%clk 0:01:27.7]} 20... cxd4 {[%clk
0:02:22.6]} 21. Bxd4 {[%clk 0:01:21]} 21... Bxd4 {[%clk 0:02:21.6]} 22. Qxd4
{[%clk 0:01:08.6]} 22... Qxd4 {[%clk 0:02:18.6]} 23. Nxd4 {[%clk 0:01:09.5]}
23... e5 {[%clk 0:02:17.1]} 24. Nb5 {[%clk 0:01:07.6]} 24... Red8 {[%clk
0:02:15.6]} 25. Rfd1 {[%clk 0:01:00.4]} 25... Nc5 {[%clk 0:02:06.5]} 26. b4
{[%clk 0:00:45.2]} 26... axb4 {[%clk 0:02:04.9]} 27. axb4 {[%clk 0:00:44.7]}
27... Nd3 {[%clk 0:02:02.9]} 28. c5 {[%clk 0:00:36.2]} 28... Ra8 {[%clk
0:01:43.5]} 29. Nd6 {[%clk 0:00:28.8]} 29... Nf4 {[%clk 0:01:33]} 30. Nxb7
{[%clk 0:00:10.8]} 30... Rdb8 {[%clk 0:01:23.3]} 31. Nd6 {[%clk 0:00:08.8]}
31... Ne2+ {[%clk 0:01:19.3]} 32. Kf1 {[%clk 0:00:07.7]} 32... Nd4 {[%clk
0:01:19]} 33. Rdc1 {[%clk 0:00:04.7]} 33... Nb5 {[%clk 0:01:10.7]} 34. Nxb5
{[%clk 0:00:04]} 34... Rxb5 {[%clk 0:01:10.4]} 35. c6 {[%clk 0:00:03.8]} 35...
Rc8 {[%clk 0:01:09.2]} 36. Rc4 {[%clk 0:00:03.8]} 36... Kf8 {[%clk 0:01:08.4]}
37. Rbc1 {[%clk 0:00:02.9]} 37... Ke7 {[%clk 0:01:08.1]} 38. c7 {[%clk
0:00:03.2]} 38... Kd7 {[%clk 0:01:05.2]} 39. Ke2 {[%clk 0:00:02.6]} 39... f6
{[%clk 0:00:57]} 40. Rd1+ {[%clk 0:00:02.3]} 40... Ke7 {[%clk 0:00:55.4]} 41.
Rc6 {[%clk 0:00:02.1]} 41... Rxb4 {[%clk 0:00:51.8]} 42. Rdd6 {[%clk 0:00:02.7]}
42... Rb7 {[%clk 0:00:49.5]} 43. Re6+ {[%clk 0:00:02.3]} 43... Kd7 {[%clk
0:00:47.6]} 44. Red6+ {[%clk 0:00:02.7]} 44... Ke7 {[%clk 0:00:47.4]} 45. Re6+
{[%clk 0:00:03.3]} 45... Kd7 {[%clk 0:00:47.4]} 46. Red6+ {[%clk 0:00:03.8]}
46... Ke7 {[%clk 0:00:43.4]} 1/2-1/2